bitfinex-derivatives/quotes_SOLF0:USTF0_20260207
["timestamp","ask_amount","ask_price","bid_price","bid_amount"]
[1770496001581,3.83661433,88.364,88.31,3.72627646]
[1770496001784,3.83661433,88.36,88.31,3.72627646]
[1770496001980,3.83661433,88.358,88.311,3.75905017]
[1770496002190,3.83661433,88.356,88.311,3.75905017]
[1770496002391,3.83661433,88.354,88.311,3.75905017]
[1770496002694,9.06479644,88.353,88.311,3.75905017]
[1770496002882,9.06479644,88.352,88.311,3.75905017]
[1770496003081,9.06479644,88.351,88.311,3.75905017]
[1770496003286,9.06479644,88.35,88.311,3.75905017]
[1770496003586,9.06479644,88.349,88.311,3.75905017]
[1770496003893,9.06479644,88.348,88.311,3.75905017]
[1770496004091,9.06479644,88.347,88.311,3.75905017]
[1770496004290,9.06479644,88.346,88.311,3.75905017]
[1770496004490,9.06479644,88.345,88.311,3.75905017]
[1770496004692,9.06479644,88.344,88.311,3.75905017]
[1770496004894,9.06479644,88.343,88.311,3.75905017]
[1770496005095,3.83661433,88.354,88.311,3.75905017]
[1770496005390,3.83661433,88.352,88.311,3.75905017]
[1770496005693,9.06125644,88.351,88.311,3.75905017]
[1770496005993,9.06125644,88.35,88.311,3.75905017]
[1770496006187,9.06125644,88.349,88.311,3.75905017]
[1770496006386,9.06125644,88.348,88.311,3.75905017]
[1770496006594,9.06125644,88.347,88.311,3.75905017]
[1770496006893,9.06125644,88.346,88.311,3.75905017]
[1770496007094,9.06125644,88.345,88.311,3.75905017]
[1770496007392,9.06125644,88.344,88.311,3.75905017]
[1770496007585,9.06125644,88.343,88.311,3.75905017]
[1770496007787,3.83661433,88.352,88.311,3.75905017]
[1770496008095,9.06258378,88.351,88.311,3.75905017]
[1770496008394,9.06258378,88.35,88.311,3.75905017]
[1770496008584,9.06258378,88.349,88.311,3.75905017]
[1770496008788,3.83661433,88.347,88.3,7.48743237]
[1770496009093,3.83661433,88.345,88.3,7.48743237]
[1770496009293,3.83661433,88.343,88.3,7.48743237]
[1770496009495,3.83661433,88.341,88.3,7.48743237]
[1770496009796,3.83661433,88.341,88.301,3.75905017]
[1770496013585,3.83661433,88.36,88.311,3.75905017]
[1770496013791,3.83661433,88.358,88.311,3.75905017]
[1770496013986,10.1935,88.361,88.311,3.75905017]
[1770496013987,3.83661433,88.356,88.311,3.75905017]
[1770496014190,3.83661433,88.354,88.311,3.75905017]
[1770496014392,3.83661433,88.352,88.311,3.75905017]
[1770496014588,3.83661433,88.35,88.311,3.75905017]
[1770496014795,3.83661433,88.348,88.311,3.75905017]
[1770496014998,3.83661433,88.346,88.311,3.75905017]
[1770496015294,12.87360418,88.345,88.311,3.75905017]
[1770496015499,3.83661433,88.344,88.311,3.75905017]
[1770496017500,3.83661433,88.344,88.32,3.7283822]
[1770496017999,3.83661433,88.364,88.33,3.7283822]
[1770496018302,9.04014105,88.363,88.33,3.7283822]
[1770496018501,9.04014105,88.362,88.33,3.7283822]
[1770496018701,9.04014105,88.361,88.33,3.7283822]
[1770496018904,9.04014105,88.36,88.33,3.7283822]
[1770496019100,9.04014105,88.359,88.33,3.7283822]
[1770496019301,9.04014105,88.358,88.33,3.7283822]
[1770496019499,9.04014105,88.357,88.33,3.7283822]
[1770496019700,9.04014105,88.356,88.33,3.7283822]
[1770496019900,9.04014105,88.355,88.34,3.7283822]
[1770496020100,9.04014105,88.354,88.34,3.7283822]
[1770496020303,9.04014105,88.353,88.34,3.7283822]
[1770496020605,3.83661433,88.364,88.34,3.7283822]
[1770496020799,9.04215482,88.363,88.34,3.7283822]
[1770496021000,9.04215482,88.362,88.34,3.7283822]
[1770496021206,9.04215482,88.361,88.34,3.7283822]
[1770496021403,9.04215482,88.36,88.34,3.7283822]
[1770496021605,9.04215482,88.359,88.34,3.7283822]
[1770496021800,3.83661433,88.364,88.34,3.7283822]
[1770496022001,3.83661433,88.377,88.35,3.7283822]
[1770496024408,3.83661433,88.387,88.36,3.7283822]
[1770496025808,3.89827927,88.401,88.37,3.7283822]
[1770496026002,3.89827927,88.401,88.38,3.7283822]
[1770496029511,3.89827927,88.401,88.37,3.7283822]
[1770496030606,3.89827927,88.401,88.38,3.7283822]
[1770496032408,3.89827927,88.401,88.37,3.7283822]
[1770496035107,3.89827927,88.401,88.371,3.89984411]
[1770496037526,3.89827927,88.401,88.301,34.06]
[1770496037527,3.8841245,88.477,88.394,3.89984411]
[1770496037813,3.8841245,88.477,88.301,34.06]
[1770496037814,3.8841245,88.494,88.45,7.62822631]
[1770496038021,3.8841245,88.492,88.44,3.7283822]
[1770496038207,3.8841245,88.49,88.46,3.7283822]
[1770496038406,3.8841245,88.49,88.44,3.7283822]
[1770496038610,3.8841245,88.489,88.425,3.89984411]
[1770496038815,3.8841245,88.479,88.425,3.89984411]
[1770496039215,3.8841245,88.479,88.441,3.89984411]
[1770496042920,3.8841245,88.479,88.43,3.89984411]
[1770496043122,3.8841245,88.469,88.418,3.89984411]
[1770496050229,3.8841245,88.469,88.42,3.7283822]
[1770496050630,3.8841245,88.459,88.407,3.89984411]
[1770496050823,3.8841245,88.459,88.41,3.7283822]
[1770496052934,3.8841245,88.459,88.407,3.89984411]
[1770496053231,3.8841245,88.459,88.41,3.7283822]
[1770496055228,3.8841245,88.479,88.431,3.89984411]
[1770496056028,3.8841245,88.479,88.441,3.71851308]
[1770496056932,3.8841245,88.479,88.45,3.7283822]
[1770496057326,3.8841245,88.479,88.441,3.71851308]
[1770496059634,3.8841245,88.479,88.369,158.5502]
[1770496059635,3.64805949,88.506,88.47,3.7283822]
[1770496059835,3.64805949,88.506,88.47,7.44689528]
[1770496063137,3.64805949,88.542,88.491,3.71851308]
[1770496063327,13.96420171,88.578,88.491,3.71851308]
[1770496063328,3.64805949,88.54,88.5,3.7283822]
[1770496063532,3.64805949,88.54,88.5,3.71253497]
[1770496065045,3.64805949,88.54,88.491,3.71851308]
[1770496065246,3.64805949,88.539,88.48,3.71253497]
[1770496065848,3.64805949,88.539,88.48,7.43104805]
[1770496066039,3.64805949,88.539,88.481,3.71851308]
[1770496066747,3.64805949,88.539,88.49,3.71253497]
[1770496070748,3.71253497,88.53,88.481,3.71851308]
[1770496070947,3.64805949,88.529,88.481,3.71851308]
[1770496076749,3.64805949,88.519,88.464,3.71851308]
[1770496077756,3.64805949,88.517,88.464,3.71851308]
[1770496079859,3.64805949,88.517,88.47,3.71253497]
[1770496080249,3.64805949,88.517,88.464,3.71851308]
[1770496080447,21.08694516,88.562,88.464,3.71851308]
[1770496080448,3.64805949,88.509,88.464,3.71851308]
[1770496080660,3.64805949,88.499,88.464,3.71851308]
[1770496081158,3.64805949,88.499,88.451,3.71851308]
[1770496081355,3.64805949,88.495,88.451,3.71851308]
[1770496081561,3.64805949,88.489,88.451,3.71851308]
[1770496083450,3.64805949,88.489,88.436,3.71851308]
[1770496084551,3.64805949,88.489,88.441,3.71851308]
[1770496084762,3.64805949,88.489,88.45,3.71253497]
[1770496085561,3.61015127,88.503,88.47,3.71253497]
[1770496087763,3.61015127,88.503,88.461,3.80077946]
[1770496088760,3.61015127,88.519,88.461,3.80077946]
[1770496088960,3.61015127,88.517,88.48,3.71253497]
[1770496089465,3.61015127,88.517,88.471,3.80077946]
[1770496091359,3.61015127,88.517,88.47,3.71253497]
[1770496091563,3.71253497,88.51,88.459,3.69386235]
[1770496091760,3.55289315,88.508,88.459,3.69386235]
[1770496092170,3.55289315,88.508,88.46,3.71253497]
[1770496093964,3.55289315,88.506,88.46,3.71253497]
[1770496094669,3.55289315,88.506,88.46,7.40639732]
[1770496095869,10.1759,88.513,88.46,7.40639732]
[1770496095870,3.55289315,88.504,88.46,7.40639732]
[1770496096164,3.55289315,88.502,88.46,7.40639732]
[1770496097067,8.79933779,88.501,88.46,3.69386235]
[1770496097271,8.80318457,88.5,88.46,3.69386235]
[1770496097575,3.55289315,88.519,88.471,3.69386235]
[1770496097866,3.55289315,88.517,88.481,3.69386235]
[1770496098273,3.55289315,88.531,88.481,3.69386235]
[1770496098470,8.80607601,88.53,88.481,3.69386235]
[1770496098774,8.80607601,88.529,88.481,3.69386235]
[1770496099072,8.80607601,88.528,88.481,3.69386235]
[1770496099273,8.80607601,88.527,88.481,3.69386235]
[1770496099473,8.80607601,88.526,88.481,3.69386235]
[1770496099673,8.80607601,88.525,88.481,3.69386235]
[1770496099874,8.80607601,88.524,88.481,3.69386235]
[1770496100174,8.80607601,88.523,88.481,3.69386235]
[1770496100372,8.80607601,88.522,88.481,3.69386235]
[1770496100574,8.80607601,88.521,88.481,3.69386235]
[1770496100775,8.80607601,88.52,88.481,3.69386235]
[1770496101080,8.80607601,88.519,88.481,3.69386235]
[1770496101265,8.80607601,88.518,88.481,3.69386235]
[1770496101574,8.80607601,88.517,88.481,3.69386235]
[1770496101769,8.80607601,88.516,88.481,3.69386235]
[1770496101962,8.80607601,88.515,88.481,3.69386235]
[1770496102172,3.55289315,88.531,88.49,3.71253497]
[1770496102374,3.55289315,88.529,88.49,3.71253497]
[1770496102678,8.84468224,88.528,88.49,3.71253497]
[1770496102974,8.84468224,88.527,88.481,3.69386235]
[1770496103174,3.55289315,88.529,88.481,3.69386235]
[1770496103175,8.84468224,88.526,88.481,3.69386235]
[1770496103370,8.84468224,88.525,88.481,3.69386235]
[1770496103571,8.84468224,88.524,88.481,3.69386235]
[1770496103768,8.84468224,88.523,88.481,3.69386235]
[1770496103964,8.84468224,88.522,88.481,3.69386235]
[1770496104171,8.84468224,88.521,88.481,3.69386235]
[1770496104577,8.84468224,88.52,88.481,3.69386235]
[1770496104771,8.84468224,88.519,88.481,3.69386235]
[1770496104973,8.84468224,88.518,88.481,3.69386235]
[1770496105276,8.84468224,88.517,88.481,3.69386235]
[1770496105477,8.84468224,88.516,88.481,3.69386235]
[1770496105778,3.55289315,88.529,88.481,3.69386235]
[1770496106079,3.55289315,88.527,88.481,3.69386235]
[1770496106279,3.55289315,88.525,88.481,3.69386235]
[1770496106578,3.55289315,88.523,88.481,3.69386235]
[1770496106782,3.55289315,88.521,88.481,3.69386235]
[1770496107077,8.84929493,88.52,88.481,3.69386235]
[1770496107376,3.55289315,88.521,88.481,3.69386235]
[1770496107377,8.84929493,88.519,88.481,3.69386235]
[1770496107578,8.84929493,88.518,88.481,3.69386235]
[1770496107781,8.84929493,88.517,88.481,3.69386235]
[1770496108080,3.55289315,88.521,88.481,3.69386235]
[1770496108274,8.84951502,88.52,88.481,3.69386235]
[1770496108584,12.40240817,88.519,88.481,3.69386235]
[1770496108774,8.84951502,88.518,88.481,3.69386235]
[1770496108974,8.84951502,88.517,88.481,3.69386235]
[1770496109174,3.55289315,88.519,88.481,3.69386235]
[1770496109373,8.84940174,88.518,88.481,3.69386235]
[1770496109578,8.84940174,88.517,88.481,3.69386235]
[1770496109774,3.55289315,88.53,88.49,3.71253497]
[1770496109977,3.55289315,88.528,88.49,3.71253497]
[1770496110280,12.40213424,88.527,88.49,3.71253497]
[1770496110477,8.84924109,88.526,88.49,7.40639732]
[1770496110671,8.84924109,88.525,88.49,7.40639732]
[1770496110877,8.84924109,88.524,88.49,7.40639732]
[1770496111077,8.84924109,88.523,88.49,7.40639732]
[1770496111377,8.84924109,88.522,88.49,7.40639732]
[1770496111577,8.84924109,88.521,88.49,7.40639732]
[1770496111778,8.84924109,88.52,88.49,7.40639732]
[1770496111979,10.54371428,88.544,88.51,3.71253497]
[1770496112178,10.54371428,88.544,88.501,3.69386235]
[1770496112179,3.55289315,88.543,88.501,3.69386235]
[1770496120885,1.55997511,88.547,88.478,3.74849891]
[1770496120886,3.74079802,88.538,88.478,3.74849891]
[1770496121184,3.74079802,88.529,88.478,3.74849891]
[1770496123295,3.74079802,88.526,88.478,3.74849891]
[1770496123586,3.74079802,88.519,88.478,3.74849891]
[1770496123783,3.74079802,88.517,88.461,3.74849891]
[1770496123993,3.74079802,88.509,88.461,3.74849891]
[1770496129994,10.1753,88.518,88.461,3.74849891]
[1770496129995,3.74079802,88.507,88.461,3.74849891]
[1770496130197,3.74079802,88.505,88.461,3.74849891]
[1770496131189,12.55178221,88.504,88.461,3.74849891]
[1770496131386,3.74079802,88.503,88.461,3.74849891]
[1770496133797,3.74079802,88.499,88.445,3.74849891]
[1770496133997,3.74079802,88.497,88.445,3.74849891]
[1770496134198,3.74079802,88.495,88.445,3.74849891]
[1770496134494,3.74079802,88.493,88.445,3.74849891]
[1770496134694,3.74079802,88.491,88.445,3.74849891]
[1770496134894,3.74079802,88.489,88.445,3.74849891]
[1770496135096,3.74079802,88.501,88.451,3.74849891]
[1770496135296,3.74079802,88.501,88.46,7.46364219]
[1770496135297,8.80809491,88.5,88.46,7.46364219]
[1770496135503,3.74079802,88.501,88.461,3.74849891]
[1770496136003,8.80735392,88.5,88.461,3.74849891]
[1770496136206,3.74079802,88.501,88.461,3.74849891]
[1770496136405,8.80686601,88.5,88.461,3.74849891]
[1770496136604,3.74079802,88.501,88.461,3.74849891]
[1770496136804,8.80686601,88.5,88.461,3.74849891]
[1770496137009,3.74079802,88.501,88.461,3.74849891]
[1770496137206,8.80680973,88.5,88.461,3.74849891]
[1770496137406,3.74079802,88.501,88.461,3.74849891]
[1770496137609,8.80680973,88.5,88.461,3.74849891]
[1770496137810,3.74079802,88.501,88.461,3.74849891]
[1770496138010,8.80680973,88.5,88.461,3.74849891]
[1770496138212,3.74079802,88.501,88.461,3.74849891]
[1770496138510,8.80653228,88.5,88.461,3.74849891]
[1770496138706,3.74079802,88.501,88.461,3.74849891]
[1770496138907,8.80653089,88.5,88.461,3.74849891]
[1770496139106,3.74079802,88.501,88.461,3.74849891]
[1770496139310,8.80653886,88.5,88.461,3.74849891]
[1770496139609,3.74079802,88.501,88.461,3.74849891]
[1770496140405,3.74079802,88.501,88.397,20.3783]
[1770496140406,3.74079802,88.479,88.438,3.74849891]
[1770496140602,3.74079802,88.477,88.438,3.74849891]
[1770496140801,3.74079802,88.475,88.438,3.74849891]
[1770496142007,3.74079802,88.469,88.424,3.74849891]
[1770496144100,10.55504919,88.493,88.424,3.74849891]
[1770496144307,3.74079802,88.489,88.431,3.74849891]
[1770496144507,3.74079802,88.487,88.431,3.74849891]
[1770496144705,3.74079802,88.485,88.431,3.74849891]
[1770496144913,3.74079802,88.483,88.431,3.74849891]
[1770496145108,3.74079802,88.481,88.431,3.74849891]
[1770496148315,3.86047327,88.495,88.441,3.66319044]
[1770496148614,3.86047327,88.495,88.451,3.66319044]
[1770496149915,3.71514328,88.5,88.451,3.66319044]
[1770496149916,3.86047327,88.493,88.451,3.66319044]
[1770496150220,3.86047327,88.491,88.451,3.66319044]
[1770496152924,3.55733803,88.503,88.46,3.71514328]
[1770496154821,3.55733803,88.503,88.451,3.66319044]
[1770496163128,3.55733803,88.501,88.451,3.66319044]
[1770496163523,302.66592543,88.564,88.414,302.90517746]
[1770496163524,3.55733803,88.499,88.44,3.71514328]
[1770496163724,3.55733803,88.497,88.44,3.71514328]
[1770496163923,3.55733803,88.495,88.44,7.58262951]
[1770496164230,3.55733803,88.493,88.441,3.86748623]
[1770496164431,3.55733803,88.491,88.441,3.86748623]
[1770496164730,3.55733803,88.489,88.441,3.86748623]
[1770496165125,3.55733803,88.487,88.441,3.86748623]
[1770496166528,3.55733803,88.485,88.441,3.86748623]
[1770496166728,12.37012588,88.484,88.441,3.86748623]
[1770496166929,12.37012588,88.483,88.441,3.86748623]
[1770496167225,8.81278785,88.482,88.441,3.86748623]
[1770496167428,3.55733803,88.483,88.441,3.86748623]
[1770496167629,8.81391254,88.482,88.441,3.86748623]
[1770496167928,3.55733803,88.483,88.441,3.86748623]
[1770496168132,8.81391254,88.482,88.441,3.86748623]
[1770496168431,8.81391254,88.481,88.441,3.86748623]
[1770496168625,3.55733803,88.483,88.441,3.86748623]
[1770496168827,8.81525319,88.482,88.441,3.86748623]
[1770496169128,8.81525319,88.481,88.441,3.86748623]
[1770496169328,3.55733803,88.483,88.441,3.86748623]
[1770496169523,12.37299867,88.482,88.441,3.86748623]
[1770496169729,8.81566064,88.481,88.441,3.86748623]
[1770496170030,3.55733803,88.482,88.441,3.86748623]
[1770496170930,3.55733803,88.493,88.46,3.71514328]
[1770496171225,8.81624718,88.492,88.46,3.71514328]
[1770496171435,3.55733803,88.492,88.46,3.71514328]
[1770496173233,8.81831878,88.491,88.46,3.71514328]
[1770496173432,3.55733803,88.492,88.46,3.71514328]
[1770496173632,8.81831878,88.491,88.46,3.71514328]
[1770496173932,8.81831878,88.49,88.46,3.71514328]
[1770496174232,8.81831878,88.489,88.46,3.71514328]
[1770496174422,3.55733803,88.492,88.46,3.71514328]
[1770496174624,8.81948044,88.491,88.46,3.71514328]
[1770496174822,8.81948044,88.49,88.46,3.71514328]
[1770496175025,8.81948044,88.489,88.46,3.71514328]
[1770496175237,3.55733803,88.492,88.46,3.71514328]
[1770496175433,8.82027129,88.491,88.46,3.71514328]
[1770496175634,8.82027129,88.49,88.46,3.71514328]
[1770496175932,8.82027129,88.489,88.46,3.71514328]
[1770496176135,8.82074394,88.488,88.46,3.71514328]
[1770496176340,3.55733803,88.492,88.46,3.71514328]
[1770496176636,8.82111569,88.491,88.46,3.71514328]
[1770496176836,8.82111569,88.49,88.46,3.71514328]
[1770496177028,8.82111569,88.489,88.46,3.71514328]
[1770496177228,8.82111569,88.488,88.46,3.71514328]
[1770496177426,3.81953716,88.508,88.47,3.71514328]
[1770496177625,3.81953716,88.508,88.414,302.90517746]
[1770496177626,10.55839543,88.542,88.501,3.7294857]
[1770496177830,14.07786058,88.557,88.414,302.90517746]
[1770496177831,3.81953716,88.539,88.488,3.7294857]
[1770496178532,3.81953716,88.533,88.48,3.71514328]
[1770496179240,3.81953716,88.529,88.48,3.71514328]
[1770496179435,3.81953716,88.529,88.481,3.7294857]
[1770496183841,3.81953716,88.529,88.47,3.71514328]
[1770496185545,3.81953716,88.529,88.47,3.71489141]
[1770496186334,3.81953716,88.529,88.471,3.7294857]
[1770496188743,3.81953716,88.519,88.471,3.7294857]
[1770496189746,3.81953716,88.517,88.471,3.7294857]
[1770496189947,3.81953716,88.509,88.45,3.71489141]
[1770496190245,3.71489141,88.51,88.45,3.71489141]
[1770496190246,3.81953716,88.507,88.45,3.71489141]
[1770496190445,3.81953716,88.503,88.45,7.44437711]
[1770496190640,3.81953716,88.501,88.451,3.7294857]
[1770496194048,3.81953716,88.499,88.451,3.7294857]
[1770496194252,3.81953716,88.497,88.451,3.7294857]
[1770496194449,3.81953716,88.495,88.451,3.7294857]
[1770496194753,3.81953716,88.493,88.451,3.7294857]
[1770496194948,3.71489141,88.5,88.451,3.7294857]
[1770496194949,3.81953716,88.491,88.451,3.7294857]
[1770496200055,8.57996598,88.49,88.451,3.7294857]
[1770496200258,8.57996598,88.489,88.451,3.7294857]
[1770496200457,8.57996598,88.488,88.451,3.7294857]
[1770496200656,3.81953716,88.491,88.451,3.7294857]
[1770496200853,3.81953716,88.502,88.461,3.7294857]
[1770496203454,8.57843605,88.501,88.461,3.7294857]
[1770496203758,8.57843605,88.5,88.461,3.7294857]
[1770496203961,8.57843605,88.499,88.461,3.7294857]
[1770496204160,3.81953716,88.502,88.461,3.7294857]
[1770496204359,8.57825062,88.501,88.47,3.71489141]
[1770496204559,3.81953716,88.513,88.471,3.7294857]
[1770496204861,3.81953716,88.511,88.471,3.7294857]
[1770496205053,8.57806081,88.51,88.471,3.7294857]
[1770496205252,8.57806081,88.509,88.471,3.7294857]
[1770496205456,8.57806081,88.508,88.471,3.7294857]
[1770496205659,8.57806081,88.507,88.471,3.7294857]
[1770496205857,8.57806081,88.506,88.471,3.7294857]
[1770496206158,8.57806081,88.505,88.471,3.7294857]
[1770496206455,3.81953716,88.511,88.481,3.69709909]
[1770496208557,3.75008417,88.525,88.481,3.69709909]
[1770496208749,8.57605124,88.524,88.481,3.69709909]
[1770496208950,12.32613541,88.523,88.481,3.69709909]
[1770496209156,12.32613541,88.522,88.481,3.69709909]
[1770496209359,8.57605124,88.521,88.481,3.69709909]
[1770496209656,8.57605124,88.52,88.481,3.69709909]
[1770496209857,8.57605124,88.519,88.481,3.69709909]
[1770496210058,8.57605124,88.518,88.481,3.69709909]
[1770496210257,8.57605124,88.517,88.481,3.69709909]
[1770496210457,8.57605124,88.516,88.481,3.69709909]
[1770496210657,8.57605124,88.515,88.481,3.69709909]
[1770496210957,8.57605124,88.514,88.481,3.69709909]
[1770496211161,8.57605124,88.513,88.481,3.69709909]
[1770496211362,3.75008417,88.522,88.481,3.69709909]
[1770496211560,8.57561285,88.521,88.481,3.69709909]
[1770496211762,8.57561285,88.52,88.481,3.69709909]
[1770496211959,8.57561285,88.519,88.481,3.69709909]
[1770496212160,3.75008417,88.522,88.481,3.69709909]
[1770496212161,8.57561285,88.518,88.481,3.69709909]
[1770496212358,8.57561285,88.517,88.481,3.69709909]
[1770496212559,8.57561285,88.516,88.481,3.69709909]
[1770496212760,8.57561285,88.515,88.481,3.69709909]
[1770496212960,8.57561285,88.514,88.481,3.69709909]
[1770496213160,8.57561285,88.513,88.481,3.69709909]
[1770496213457,3.75008417,88.522,88.481,3.69709909]
[1770496213659,12.18493407,88.521,88.481,3.69709909]
[1770496213959,8.57683266,88.52,88.481,3.69709909]
[1770496214159,8.57683266,88.519,88.481,3.69709909]
[1770496214358,8.57683266,88.518,88.481,3.69709909]
[1770496214560,8.57683266,88.517,88.481,3.69709909]
[1770496214762,3.60810141,88.515,88.481,3.69709909]
[1770496214961,3.60810141,88.513,88.481,3.69709909]
[1770496215158,8.57721786,88.512,88.481,3.69709909]
[1770496215358,8.57721786,88.512,88.401,28.26647689]
[1770496215359,3.60810141,88.509,88.458,3.61454795]
[1770496215559,3.60810141,88.499,88.458,3.61454795]
[1770496215862,3.60810141,88.497,88.458,3.61454795]
[1770496216064,8.57721786,88.496,88.458,3.61454795]
[1770496216366,3.60810141,88.497,88.458,3.61454795]
[1770496216566,8.58073168,88.496,88.458,3.61454795]
[1770496216760,3.60810141,88.497,88.458,3.61454795]
[1770496216967,12.18883309,88.496,88.458,3.61454795]
[1770496217162,3.60810141,88.496,88.458,3.61454795]
[1770496217467,8.58102071,88.495,88.458,3.61454795]
[1770496217668,3.60810141,88.496,88.458,3.61454795]
[1770496217863,8.58102042,88.495,88.458,3.61454795]
[1770496218063,3.60810141,88.496,88.458,3.61454795]
[1770496218264,8.58109796,88.495,88.458,3.61454795]
[1770496218466,3.60810141,88.496,88.458,3.61454795]
[1770496218664,8.58130965,88.495,88.458,3.61454795]
[1770496218975,3.60810141,88.496,88.458,3.61454795]
[1770496219268,8.58130965,88.495,88.458,3.61454795]
[1770496219470,3.60810141,88.496,88.458,3.61454795]
[1770496219669,8.58160958,88.495,88.458,3.61454795]
[1770496219864,3.60810141,88.496,88.458,3.61454795]
[1770496220065,8.58160958,88.495,88.458,3.61454795]
[1770496220271,3.60810141,88.496,88.458,3.61454795]
[1770496220468,8.58191654,88.495,88.458,3.61454795]
[1770496220668,14.07087637,88.527,88.458,3.61454795]
[1770496220669,3.60810141,88.509,88.46,3.71489141]
[1770496220867,8.58179317,88.508,88.471,3.61454795]
[1770496221065,8.58179317,88.507,88.471,3.61454795]
[1770496221267,8.58179317,88.506,88.471,3.61454795]
[1770496221468,8.58179317,88.505,88.471,3.61454795]
[1770496221671,8.58179317,88.504,88.48,3.71489141]
[1770496221974,3.60810141,88.518,88.48,3.71489141]
[1770496222270,3.60810141,88.516,88.471,3.61454795]
[1770496222571,3.60810141,88.514,88.471,3.61454795]
[1770496222771,3.60810141,88.512,88.471,3.61454795]
[1770496222971,3.60810141,88.51,88.471,3.61454795]
[1770496223268,3.60810141,88.51,88.47,3.71489141]
[1770496223269,3.60810141,88.529,88.49,3.71489141]
[1770496223470,3.60810141,88.529,88.491,3.61454795]
[1770496223674,3.60810141,88.529,88.5,3.71489141]
[1770496225075,3.60810141,88.529,88.491,3.61454795]
[1770496225873,3.60810141,88.529,88.424,34.0]
[1770496225874,3.60810141,88.529,88.48,3.71489141]
[1770496226075,3.60810141,88.529,88.479,3.61454795]
[1770496230277,3.60810141,88.519,88.467,3.61454795]
[1770496233179,3.60810141,88.519,88.48,3.71489141]
[1770496233378,3.60810141,88.519,88.481,3.61454795]
[1770496235277,12.16491174,88.518,88.481,3.61454795]
[1770496235582,8.55681033,88.517,88.481,3.61454795]
[1770496235777,8.55681033,88.516,88.481,3.61454795]
[1770496235977,8.55681033,88.515,88.481,3.61454795]
[1770496236181,8.55681033,88.514,88.481,3.61454795]
[1770496236476,8.55681033,88.513,88.481,3.61454795]
[1770496236681,8.55681033,88.512,88.481,3.61454795]
[1770496236882,3.60810141,88.518,88.481,3.61454795]
[1770496237084,8.55709264,88.517,88.481,3.61454795]
[1770496237277,8.55709264,88.516,88.481,3.61454795]
[1770496237478,8.55709264,88.515,88.481,3.61454795]
[1770496237780,3.60810141,88.518,88.481,3.61454795]
[1770496238086,8.55683971,88.517,88.481,3.61454795]
[1770496238289,8.55683971,88.516,88.481,3.61454795]
[1770496238487,3.60810141,88.518,88.481,3.61454795]
[1770496238683,8.556605,88.517,88.481,3.61454795]
[1770496238881,8.556605,88.516,88.481,3.61454795]
[1770496239088,8.556605,88.515,88.481,3.61454795]
[1770496239289,3.60810141,88.518,88.481,3.61454795]
[1770496239486,8.55738394,88.517,88.481,3.61454795]
[1770496239682,3.8063982,88.515,88.47,7.33059957]
[1770496239888,3.8063982,88.513,88.47,3.61570816]
[1770496240386,3.8063982,88.511,88.47,3.61570816]
[1770496242580,3.8063982,88.511,88.471,3.61570816]
[1770496243189,3.8063982,88.535,88.481,3.61570816]
[1770496243389,3.8063982,88.533,88.49,3.71489141]
[1770496243591,3.8063982,88.531,88.49,3.71489141]
[1770496243795,3.8063982,88.529,88.481,3.61570816]
[1770496244002,3.8063982,88.527,88.481,3.61570816]
[1770496244202,3.8063982,88.525,88.481,3.61570816]
[1770496244504,12.36963109,88.524,88.481,3.61570816]
[1770496244800,3.8063982,88.524,88.481,3.61570816]
[1770496249507,3.8063982,88.524,88.491,3.61570816]
[1770496250306,8.56257957,88.523,88.491,3.61570816]
[1770496250509,3.8063982,88.524,88.491,3.61570816]
[1770496253409,3.8063982,88.544,88.491,3.61570816]
[1770496253610,3.8063982,88.542,88.491,3.61570816]
[1770496253910,3.8063982,88.54,88.491,3.61570816]
[1770496254110,3.8063982,88.538,88.491,3.61570816]
[1770496254313,3.8063982,88.536,88.491,3.61570816]
[1770496254511,3.8063982,88.534,88.491,3.61570816]
[1770496254812,12.36691435,88.533,88.491,3.61570816]
[1770496255112,8.56051615,88.532,88.493,3.61570816]
[1770496255311,8.56051615,88.531,88.493,3.61570816]
[1770496255513,3.8063982,88.544,88.493,3.61570816]
[1770496255713,3.8063982,88.542,88.493,3.61570816]
[1770496255912,3.8063982,88.54,88.493,3.61570816]
[1770496256114,12.36487249,88.539,88.493,3.61570816]
[1770496256413,8.55847429,88.538,88.493,3.61570816]
[1770496256608,8.55847429,88.537,88.493,3.61570816]
[1770496256908,8.55847429,88.536,88.493,3.61570816]
[1770496257211,8.55847429,88.535,88.493,3.61570816]
[1770496257407,8.55847429,88.534,88.493,3.61570816]
[1770496257603,8.55847429,88.533,88.493,3.61570816]
[1770496257810,8.55847429,88.532,88.493,3.61570816]
[1770496258012,8.55847429,88.531,88.493,3.61570816]
[1770496258211,3.8063982,88.539,88.493,3.61570816]
[1770496258411,8.55556503,88.538,88.493,3.61570816]
[1770496258713,8.55556503,88.537,88.501,3.61570816]
[1770496259011,8.55556503,88.536,88.501,3.61570816]
[1770496259210,8.55556503,88.535,88.501,3.61570816]
[1770496259413,8.55556503,88.534,88.501,3.61570816]
[1770496259713,8.55556503,88.533,88.501,3.61570816]
[1770496259910,8.55556503,88.532,88.501,3.61570816]
[1770496260112,3.8063982,88.539,88.501,3.61570816]
[1770496260310,8.55474669,88.538,88.501,3.61570816]